bitfinex/quotes_SOLUSD_20240626
["timestamp","ask_amount","ask_price","bid_price","bid_amount"]
[1719399028674,7.3112,136.78,136.73,7.3135]
[1719399028865,7.01848312,136.79,136.73,8.37723272]
[1719399029068,7.3115,136.77,136.73,1.06373272]
[1719399029575,7.3115,136.77,136.73,8.37723272]
[1719399030173,7.3112,136.78,136.73,7.3135]
[1719399031586,7.3112,136.78,136.74,7.313]
[1719399035175,14.32908312,136.79,136.74,7.313]
[1719399036088,14.32908312,136.79,136.74,18.2826]
[1719399036469,14.32908312,136.79,136.74,25.5952]
[1719399036667,7.01848312,136.79,136.74,18.2826]
[1719399036985,42.44371812,136.83,136.78,7.3105]
[1719399036986,8.16292,136.83,136.78,7.3105]
[1719399037159,8.16292,136.83,136.78,25.5879]
[1719399041886,8.16292,136.83,136.79,7.3103]
[1719399042774,8.16292,136.83,136.78,25.5881]
[1719399047589,0.85452,136.83,136.79,7.3104]
[1719399047895,0.85452,136.83,136.79,7.4804]
[1719399048285,0.85452,136.83,136.8,7.3096]
[1719399048493,0.85452,136.83,136.8,7.4796]
[1719399048685,8.16292,136.83,136.79,7.4804]
[1719399049775,0.85452,136.83,136.79,7.4804]
[1719399050674,0.85452,136.83,136.8,7.3098]
[1719399052199,0.85452,136.83,136.79,7.4802]
[1719399052403,0.85452,136.83,136.8,0.17]
[1719399053681,0.85452,136.83,136.8,7.4799]
[1719399058512,8.16282,136.83,136.79,0.17]
[1719399058806,0.85452,136.83,136.79,7.6504]
[1719399059394,0.85452,136.83,136.8,25.5835]
[1719399060301,0.85452,136.83,136.8,18.274]
[1719399061003,0.85452,136.83,136.8,25.5838]
[1719399062285,8.16282,136.83,136.79,7.6503]
[1719399063206,8.16282,136.83,136.79,7.3103]
[1719399064708,0.85452,136.83,136.79,7.3103]
[1719399066215,7.309,136.82,136.77,25.589]
[1719399066589,8.16292,136.83,136.78,7.3109]
[1719399067214,8.16292,136.83,136.79,7.3104]
[1719399067430,0.85452,136.83,136.79,7.3104]
[1719399068506,0.85452,136.83,136.79,18.2758]
[1719399068807,0.85452,136.83,136.8,7.3097]
[1719399070096,0.85452,136.83,136.81,7.3093]
[1719399071010,0.85452,136.83,136.8,7.3097]
[1719399073519,0.85452,136.83,136.82,7.3088]
[1719399073814,0.85452,136.83,136.81,18.273]
[1719399074111,0.85452,136.83,136.81,25.5822]
[1719399074614,0.85452,136.83,136.81,18.273]
[1719399075117,0.85452,136.83,136.8,7.6497]
[1719399075415,0.85452,136.83,136.8,7.3097]
[1719399077225,0.85452,136.83,136.81,7.3092]
[1719399084329,0.85452,136.83,136.77,27.03]
[1719399084330,8.16302,136.83,136.77,18.2779]
[1719399084498,0.85452,136.83,136.79,7.3102]
[1719399085002,0.85452,136.83,136.8,7.3099]
[1719399086122,0.85452,136.83,136.79,25.5862]
[1719399087109,8.16292,136.83,136.79,25.5862]
[1719399088398,8.16292,136.83,136.79,18.276]
[1719399088605,7.3094,136.81,136.76,18.279]
[1719399088808,7.3089,136.82,136.77,7.311]
[1719399090100,7.3089,136.82,136.78,7.3108]
[1719399090532,8.16292,136.83,136.78,7.3108]
[1719399091316,0.85452,136.83,136.79,7.3104]
[1719399091637,0.85452,136.83,136.79,7.3102]
[1719399092639,8.16292,136.83,136.79,7.3102]
[1719399096039,0.85452,136.83,136.79,7.3102]
[1719399096530,0.85452,136.83,136.8,18.2745]
[1719399096714,0.85452,136.83,136.82,7.3088]
[1719399096907,0.85452,136.83,136.81,7.6492]
[1719399097124,0.85452,136.83,136.81,7.4792]
[1719399097323,0.85452,136.83,136.8,25.5843]
[1719399098006,0.85452,136.83,136.81,7.3093]
[1719399099622,0.85452,136.83,136.8,25.5842]
[1719399100012,0.85452,136.83,136.81,7.3092]
[1719399103937,0.85452,136.83,136.76,7.336]
[1719399103938,7.3095,136.81,136.77,25.5895]
[1719399104133,7.3095,136.81,136.77,18.2783]
[1719399105637,7.3095,136.81,136.77,25.5897]
[1719399106654,16.53442,136.83,136.8,7.3099]
[1719399106953,0.85452,136.83,136.82,7.3088]
[1719399109036,0.85452,136.83,136.81,25.5821]
[1719399113219,0.85452,136.83,136.82,7.3088]
[1719399114444,0.85452,136.83,136.8,7.3099]
[1719399115421,0.85452,136.83,136.81,7.3093]
[1719399115653,7.3032,136.93,136.88,7.3052]
[1719399115948,28.64350803,136.97,136.82,86.2144]
[1719399115949,7.3025,136.94,136.89,7.305]
[1719399116144,7.303,136.93,136.89,7.305]
[1719399116453,7.303,136.93,136.88,7.3054]
[1719399117130,6.75808864,136.96,136.84,18.2685]
[1719399117446,11.99800535,136.94,136.86,7.3066]
[1719399117659,7.3044,136.91,136.86,7.3066]
[1719399117846,7.3035,136.93,136.86,18.2659]
[1719399118148,7.3042,136.91,136.87,7.3061]
[1719399119035,7.3042,136.91,136.86,25.5724]
[1719399119629,6.0708,136.94,136.85,7.3071]
[1719399119831,6.0708,136.94,136.86,7.3067]
[1719399119832,7.3046,136.9,136.86,7.3067]
[1719399120045,7.3046,136.9,136.83,18.2698]
[1719399120343,7.3046,136.9,136.85,7.307]
[1719399120545,6.0708,136.94,136.85,7.307]
[1719399120546,7.3045,136.91,136.85,7.307]
[1719399120745,6.0708,136.94,136.86,7.3066]
[1719399121320,7.3042,136.91,136.86,7.3066]
[1719399121922,6.0708,136.94,136.87,18.265]
[1719399122119,13.3734,136.94,136.89,7.3051]
[1719399122734,6.0708,136.94,136.87,25.5708]
[1719399122935,6.0708,136.94,136.86,7.3066]
[1719399123155,7.3042,136.91,136.86,7.3066]
[1719399123846,7.3051,136.89,136.85,7.307]
[1719399124044,7.3051,136.89,136.84,18.2686]
[1719399124045,7.3058,136.88,136.83,7.3081]
[1719399124220,7.3058,136.88,136.84,7.3077]
[1719399124523,6.0708,136.94,136.83,18.2704]
[1719399124524,7.3046,136.9,136.85,7.3071]
[1719399124724,7.3046,136.9,136.85,18.2678]
[1719399124956,7.3042,136.91,136.85,18.2678]
[1719399125156,7.3046,136.9,136.86,7.3063]
[1719399125833,7.3037,136.92,136.87,7.3059]
[1719399126031,15.0792,136.95,136.86,27.03]
[1719399126237,15.0792,136.95,136.85,36.5358]
[1719399126238,15.0792,136.95,136.9,7.3044]
[1719399126435,22.3815,136.95,136.9,7.3044]
[1719399126830,7.3025,136.94,136.89,25.5667]
[1719399127132,7.303,136.93,136.89,25.5667]
[1719399129269,15.0792,136.95,136.9,7.3045]
[1719399129270,7.3025,136.94,136.9,7.3045]
[1719399131850,7.3025,136.94,136.89,25.5668]
[1719399132559,7.3031,136.93,136.89,25.5668]
[1719399133767,0.85452,136.96,136.94,7.3024]
[1719399134135,0.85452,136.96,136.93,25.56]
[1719399134546,0.85452,136.96,136.94,7.3023]
[1719399134960,0.85452,136.96,136.93,18.5973]
[1719399135136,0.85452,136.96,136.94,7.3023]
[1719399135342,0.85452,136.96,136.93,25.5602]
[1719399136372,0.85452,136.96,136.9,34.0379]
[1719399136951,7.3046,136.9,136.87,16.0681]
[1719399137150,7.3047,136.9,136.85,7.3072]
[1719399137449,7.3052,136.89,136.84,47.7858]
[1719399138168,7.3042,136.91,136.86,7.3066]
[1719399138462,7.3042,136.91,136.87,8.84768568]
[1719399138667,7.3035,136.92,136.88,7.3055]
[1719399139345,7.3035,136.92,136.87,7.306]
[1719399139547,15.8536,136.95,136.88,18.2637]
[1719399139748,7.3034,136.93,136.88,25.5691]
[1719399140169,7.3024,136.94,136.88,18.2637]
[1719399140357,0.85452,136.96,136.9,25.5652]
[1719399140559,7.3024,136.94,136.9,18.2608]
[1719399140776,7.302,136.95,136.9,25.565]
[1719399141048,7.3024,136.94,136.9,18.2608]
[1719399141468,7.302,136.95,136.9,25.5652]
[1719399142055,7.3025,136.94,136.9,25.5652]
[1719399142455,0.85452,136.96,136.91,7.3039]
[1719399142973,0.85452,136.96,136.9,18.2608]
[1719399143159,0.85452,136.96,136.92,18.2583]
[1719399143361,0.85452,136.96,136.92,25.5616]
[1719399143362,8.15602,136.96,136.92,25.5616]
[1719399143581,8.15602,136.96,136.92,18.2583]
[1719399144282,8.15602,136.96,136.92,25.5617]
[1719399146982,0.85452,136.96,136.93,7.3028]
[1719399147485,0.85452,136.96,136.91,13.8469]
[1719399147856,7.3022,136.95,136.91,6.543]
[1719399148056,7.3022,136.95,136.91,13.847]
[1719399148778,0.85452,136.96,136.93,7.3029]
[1719399149162,0.85452,136.96,136.92,7.3033]
[1719399150159,8.15592,136.96,136.92,7.3033]
[1719399150562,7.302,136.95,136.91,18.5999]
[1719399150878,7.3025,136.94,136.9,23.8899]
[1719399152090,7.3021,136.95,136.91,7.3039]
[1719399152981,8.15592,136.96,136.91,7.3038]
[1719399154476,7.3019,136.95,136.91,7.3038]
[1719399154893,41.91402,136.96,136.87,25.5702]
[1719399155061,7.3037,136.92,136.87,25.5702]
[1719399155261,18.2562,136.94,136.84,18.2684]
[1719399155782,18.2562,136.94,136.85,7.3069]
[1719399155783,7.3051,136.89,136.85,7.3069]
[1719399155980,7.3047,136.9,136.85,7.3069]
[1719399156361,18.2562,136.94,136.86,18.2663]
[1719399156362,7.304,136.92,136.86,18.2663]
[1719399156561,7.304,136.92,136.87,7.3058]
[1719399157158,23.66042,136.96,136.88,18.4337]
[1719399157669,7.3038,136.92,136.88,18.2637]
[1719399157980,7.3026,136.94,136.89,7.3047]
[1719399158600,7.3019,136.95,136.87,0.17]
[1719399158786,7.3019,136.95,136.9,18.2611]
[1719399159290,17.24262,136.96,136.9,18.2611]
[1719399159291,24.54402,136.96,136.9,18.2611]
[1719399159496,0.85452,136.96,136.92,7.303]
[1719399159788,0.85452,136.96,136.93,7.3028]
[1719399160207,0.85452,136.96,136.92,25.5616]
[1719399160600,0.85452,136.96,136.93,7.3029]
[1719399161095,8.15602,136.96,136.92,18.2583]
[1719399161975,8.15602,136.96,136.92,25.5616]
[1719399162691,0.85452,136.96,136.92,25.5616]
[1719399164395,8.15592,136.96,136.92,25.5616]
[1719399165298,0.85452,136.96,136.94,7.3024]
[1719399165686,0.85452,136.96,136.95,7.4719]
[1719399165880,0.85452,136.96,136.95,7.6419]
[1719399170683,0.85452,136.96,136.94,18.2555]
[1719399171202,0.85452,136.96,136.94,25.5578]
[1719399171586,0.85452,136.96,136.95,7.3019]
[1719399172011,0.85452,136.96,136.95,7.4719]
[1719399172217,0.85452,136.96,136.95,7.6419]
[1719399176912,329.37941174,137.1,136.95,15.6059]
[1719399177113,14.89072833,137.06,137.01,7.2982]
[1719399177300,7.2956,137.07,137.0,18.247]
[1719399177493,7.2963,137.06,137.01,7.2985]
[1719399178109,7.2967,137.05,137.0,25.7161]
[1719399178318,41.69481174,137.1,137.01,0.34]
[1719399178495,7.2961,137.06,137.02,7.298]
[1719399179824,7.2961,137.06,137.01,7.6385]
[1719399180726,7.2967,137.05,137.0,25.5461]
[1719399180919,7.2967,137.05,137.01,7.2987]
[1719399181500,0.89791174,137.1,137.02,21.9002]
[1719399181709,0.89791174,137.1,137.08,14.6116]
[1719399181919,0.89791174,137.1,137.08,7.2948]
[1719399182122,0.89791174,137.1,137.08,25.5317]
[1719399182421,0.89791174,137.1,137.08,18.2369]
[1719399182804,0.89791174,137.1,137.09,7.2944]
[1719399183113,0.89791174,137.1,137.08,25.5317]
[1719399184424,0.89791174,137.1,137.07,7.2953]
[1719399184629,0.89791174,137.1,137.05,18.2407]
[1719399184924,0.89791174,137.1,137.06,7.2956]
[1719399185424,7.2945,137.09,137.05,25.5371]
[1719399185620,8.19181174,137.1,137.05,18.2407]
[1719399185922,7.2945,137.09,137.05,25.5371]
[1719399186501,8.19191174,137.1,137.05,25.5371]
[1719399187328,8.19191174,137.1,137.06,7.2959]
[1719399188841,7.2945,137.09,137.05,25.5372]
[1719399190332,0.89791174,137.1,137.06,7.296]
[1719399190815,0.89791174,137.1,137.09,7.2944]
[1719399191431,0.89791174,137.1,137.09,7.4644]
[1719399191745,0.89791174,137.1,137.09,7.6344]
[1719399192252,0.89791174,137.1,137.09,7.2944]
[1719399192418,0.89791174,137.1,137.08,7.2949]
[1719399192824,0.89791174,137.1,137.07,25.5332]
[1719399193030,0.89791174,137.1,137.07,18.2379]
[1719399193227,0.89791174,137.1,137.07,25.5333]
[1719399193525,0.89791174,137.1,137.08,7.2949]
[1719399194517,0.89791174,137.1,137.09,7.2944]
[1719399194717,0.89791174,137.1,137.09,7.4644]
[1719399194932,0.89791174,137.1,137.09,7.2944]
[1719399195421,0.89791174,137.1,137.07,18.2379]
[1719399195625,0.89791174,137.1,137.09,7.2944]
[1719399195921,0.70508667,137.1,137.07,18.2379]
[1719399196130,0.70508667,137.1,137.08,7.4645]
[1719399196320,0.70508667,137.1,137.08,7.2945]
[1719399196519,0.70508667,137.1,137.07,18.2379]
[1719399196730,0.70508667,137.1,137.07,25.5334]
[1719399197336,0.70508667,137.1,137.08,7.2948]
[1719399198214,0.70508667,137.1,137.07,18.4079]
[1719399198414,0.70508667,137.1,137.08,7.2946]
[1719399199742,0.70508667,137.1,137.07,25.7033]
[1719399199940,7.99908667,137.1,137.07,18.2379]
[1719399200140,7.99908667,137.1,137.05,7.2961]
[1719399200441,7.295,137.08,137.04,25.5388]
[1719399200628,0.70508667,137.1,137.05,7.2964]
[1719399200629,7.2946,137.09,137.05,7.2964]
[1719399200824,7.295,137.08,137.04,18.2418]
[1719399201026,7.2961,137.06,137.02,7.2978]
[1719399201236,7.2961,137.06,137.01,25.5446]
[1719399201420,7.2966,137.05,137.01,18.246]
[1719399201819,7.2966,137.05,137.01,25.5446]
[1719399202044,7.2961,137.06,137.02,7.298]
[1719399203023,7.2957,137.07,137.02,7.298]
[1719399203538,7.2957,137.07,137.02,7.99749723]
[1719399204227,7.296,137.06,137.02,7.298]
[1719399204545,18.2378,137.08,136.98,39.6619]
[1719399204726,7.2962,137.06,137.02,7.298]
[1719399206750,7.2962,137.06,137.01,7.2985]
[1719399207242,8.29722942,137.1,137.02,18.2449]
[1719399207436,7.2954,137.08,137.03,7.6375]
[1719399207639,7.2945,137.09,137.04,7.2966]
[1719399207829,7.2945,137.09,137.05,7.2965]
[1719399208347,7.2945,137.09,137.04,25.5395]
[1719399210839,7.2945,137.09,137.05,7.2965]
[1719399212531,7.2956,137.07,137.03,7.2974]
[1719399212731,7.2956,137.07,137.02,7.298]
[1719399213062,18.2363,137.09,137.01,25.5444]
[1719399213351,18.2363,137.09,137.01,18.2458]
[1719399213352,7.2967,137.05,137.01,18.2458]
[1719399214259,7.2971,137.04,137.01,18.2458]
[1719399214451,7.2968,137.05,137.01,18.2458]
[1719399215748,18.2392,137.07,136.99,7.2996]
[1719399216738,7.2986,137.02,136.98,39.6619]
[1719399216940,7.2978,137.03,136.98,40.6782]
[1719399217339,7.2972,137.04,136.99,7.2997]
[1719399218250,7.2977,137.03,136.99,7.2997]
[1719399218451,7.2982,137.02,136.98,25.5499]
[1719399218660,7.2978,137.03,136.98,25.5499]
[1719399220363,6.3946,137.05,136.98,18.2498]
[1719399220669,6.3946,137.05,136.95,6.4245]
[1719399220670,7.299,137.01,136.95,24.6782]
[1719399220864,7.299,137.01,136.97,7.3008]
[1719399221246,7.299,137.01,136.96,7.3012]
[1719399222174,24.6365,137.05,136.95,24.6782]
[1719399222175,7.2982,137.02,136.97,7.3008]
[1719399222579,7.2982,137.02,136.98,7.3003]
[1719399222862,7.2982,137.02,136.97,25.5523]
[1719399223065,7.2989,137.01,136.97,25.5523]
[1719399223938,7.2989,137.01,136.97,18.2517]
[1719399224167,7.2993,137.0,136.96,7.3012]
[1719399224546,7.2989,137.01,136.97,7.3008]
[1719399224965,7.2989,137.01,136.96,25.5543]
[1719399225670,7.2989,137.01,136.97,7.3007]
[1719399226375,7.2989,137.01,136.96,25.5544]
[1719399227268,7.2989,137.01,136.97,7.3007]
[1719399227470,24.6365,137.05,136.97,7.3007]
[1719399227670,7.2981,137.03,136.98,7.2998]
[1719399227875,7.2982,137.02,136.98,25.5506]
[1719399228248,7.2982,137.02,136.98,18.2505]
[1719399228466,7.2986,137.02,136.97,7.3007]
[1719399228774,7.59558018,137.04,136.97,7.3007]
[1719399229273,7.59558018,137.04,136.97,25.5527]
[1719399229463,7.2985,137.02,136.97,25.5527]
[1719399230472,16.2272,137.01,136.9,16.1323]
[1719399230677,7.3004,136.98,136.93,25.56]
[1719399230842,7.3009,136.97,136.93,25.56]
[1719399231547,7.3005,136.98,136.93,25.56]
[1719399233286,7.301,136.97,136.93,25.56]
[1719399233860,7.3005,136.98,136.93,25.56]
[1719399234060,7.3005,136.98,136.94,7.3024]
[1719399235076,16.2272,137.01,136.94,7.3024]
[1719399235284,7.3002,136.99,136.94,7.302]
[1719399236153,16.2272,137.01,136.93,25.5599]
[1719399236355,23.41895078,137.01,136.93,25.5599]
[1719399237474,7.3009,136.97,136.93,25.5599]
[1719399237672,7.3014,136.96,136.92,7.3033]
[1719399237873,7.3014,136.96,136.91,7.304]
[1719399238664,7.3014,136.96,136.92,7.3032]
[1719399239684,7.302,136.95,136.9,41.6968]
[1719399239880,7.3028,136.94,136.9,18.2605]
[1719399240397,7.3036,136.92,136.88,7.3055]
[1719399240723,15.4063,136.95,136.87,25.5703]
[1719399240724,7.3041,136.91,136.87,25.5703]
[1719399240910,7.3031,136.93,136.87,18.2643]
[1719399241101,7.3025,136.94,136.89,7.3047]
[1719399241278,7.3037,136.92,136.87,18.2643]
[1719399242962,7.3031,136.93,136.88,7.3053]
[1719399243190,15.4063,136.95,136.86,6.6781]
[1719399243191,7.3024,136.94,136.89,18.2622]
[1719399243396,7.19175078,136.96,136.89,18.2622]
[1719399244193,14.49325078,136.96,136.91,7.3037]
[1719399244366,7.302,136.95,136.91,7.3037]
[1719399245389,16.2313,136.93,136.83,7.59767758]
[1719399245593,9.80801984,136.92,136.82,7.3085]
[1719399245799,7.3062,136.87,136.82,7.3085]
[1719399247275,7.3062,136.87,136.83,0.17]
[1719399247972,7.3062,136.87,136.83,7.4783]
[1719399248192,9.80801984,136.92,136.83,0.17]
[1719399248398,7.3047,136.9,136.85,7.307]
[1719399248908,7.3052,136.89,136.84,25.5765]
[1719399249112,28.06741984,136.92,136.83,7.6481]
[1719399249443,28.06741984,136.92,136.82,16.6654]
[1719399249444,7.3067,136.86,136.82,16.6654]
[1719399250221,7.3076,136.85,136.81,18.2725]
[1719399250423,9.80801984,136.89,136.81,25.5818]
[1719399250424,7.3069,136.86,136.81,25.5818]
[1719399250611,7.3063,136.87,136.82,7.3086]
[1719399250926,18.2651,136.88,136.78,33.8593]
[1719399251128,28.07311984,136.88,136.81,7.3093]
[1719399251293,7.3069,136.86,136.81,7.3093]
[1719399253316,7.3073,136.85,136.8,25.584]
[1719399254198,7.3082,136.84,136.8,25.5841]
[1719399254915,7.3074,136.85,136.8,25.5841]
[1719399255709,7.3074,136.85,136.81,7.3093]
[1719399256730,7.3068,136.86,136.81,7.3093]
[1719399257229,7.3073,136.85,136.81,7.3093]
[1719399258520,9.80801984,136.88,136.82,7.3088]
[1719399259115,7.3068,136.86,136.82,7.3088]
[1719399259829,7.3063,136.87,136.82,7.3088]
[1719399260003,9.80801984,136.88,136.83,7.3083]
[1719399260419,7.3066,136.87,136.82,25.5806]
[1719399261026,9.80801984,136.88,136.82,25.5806]
[1719399261336,7.3068,136.86,136.82,25.5806]
[1719399264312,9.80801984,136.86,136.8,7.6494]
[1719399265230,7.3078,136.84,136.8,7.6494]
[1719399265734,7.3073,136.85,136.81,7.3092]
[1719399266975,9.80801984,136.86,136.78,15.5819]
[1719399266976,7.309,136.82,136.78,15.5819]
[1719399267630,28.07631984,136.85,136.78,15.5819]
[1719399267936,7.309,136.82,136.78,22.8927]
[1719399269331,7.309,136.82,136.78,22.8928]
[1719399270835,7.309,136.82,136.78,15.5819]
[1719399271032,7.3084,136.83,136.78,22.8929]
[1719399271240,7.3084,136.83,136.79,7.3103]
[1719399271532,7.3079,136.84,136.8,7.3098]
[1719399272219,7.3079,136.84,136.78,33.859]
[1719399272220,7.3079,136.84,136.79,7.3103]
[1719399272537,7.3115,136.77,136.76,0.14943333]
[1719399272839,30.0,136.81,136.76,0.14943333]
[1719399273045,7.3115,136.77,136.76,0.14943333]
[1719399277317,7.3105,136.79,136.76,0.14943333]
[1719399277726,7.31,136.8,136.76,0.14943333]
[1719399278147,7.3105,136.79,136.76,0.14943333]
[1719399279542,8.82922688,136.81,136.76,0.14943333]
[1719399279725,7.3101,136.8,136.76,7.63143333]
[1719399280652,7.3092,136.82,136.77,7.3114]
[1719399280948,7.3095,136.81,136.77,7.3114]
[1719399282945,7.3089,136.82,136.78,7.3109]
[1719399283145,7.3085,136.83,136.78,7.3109]
[1719399283451,7.309,136.82,136.77,13.8281]
[1719399283643,8.82922688,136.84,136.77,13.8281]
[1719399284324,8.82922688,136.84,136.78,18.4473]
[1719399284727,7.3087,136.83,136.79,7.3102]
[1719399285150,16.13712688,136.84,136.79,7.3102]
[1719399285349,7.3079,136.84,136.79,7.3102]
[1719399286562,7.3083,136.83,136.79,7.3102]
[1719399287635,8.82922688,136.87,136.8,18.6137]
[1719399287863,8.82922688,136.87,136.8,18.4437]
[1719399288037,8.82922688,136.87,136.81,7.3093]
[1719399288246,7.3073,136.85,136.81,7.3093]
[1719399288565,7.308,136.84,136.8,25.9234]
[1719399289131,7.3073,136.85,136.81,7.3093]
[1719399289345,7.3073,136.85,136.8,25.9234]
[1719399290136,7.3073,136.85,136.81,7.3093]
[1719399290954,7.3069,136.86,136.81,7.3093]
[1719399292749,7.3069,136.86,136.82,7.3088]
[1719399292952,7.3069,136.86,136.81,7.3092]
[1719399295362,16.13552688,136.87,136.83,7.3083]
[1719399296071,7.3067,136.86,136.82,25.5806]
[1719399296767,8.82922688,136.87,136.83,6.4919]
[1719399297058,7.3061,136.88,136.83,6.6619]
[1719399297248,7.3064,136.87,136.83,13.97]
[1719399298339,285.04382939,136.92,136.82,18.4419]
[1719399298340,7.3067,136.86,136.82,18.4419]
[1719399298544,7.3067,136.86,136.82,18.2719]
[1719399299766,7.3067,136.86,136.82,25.5805]
[1719399300650,18.263,136.89,136.82,25.5805]
[1719399300651,7.3064,136.87,136.82,25.5805]
[1719399300967,18.263,136.89,136.81,15.7858]
[1719399300968,7.3079,136.84,136.81,15.7858]
[1719399301469,7.3074,136.85,136.81,23.0949]
[1719399302760,345.62971717,136.92,136.81,34.0587]
[1719399303064,20.34,136.91,136.81,34.0587]
[1719399303442,28.45972688,136.91,136.81,34.0587]
[1719399303648,8.28972688,136.91,136.83,18.2703]
[1719399303851,7.3056,136.89,136.84,7.3073]
[1719399304071,7.3057,136.88,136.84,7.3073]
[1719399304665,8.28972688,136.91,136.85,25.5752]
[1719399304858,7.3044,136.91,136.87,7.3061]
[1719399306169,7.3044,136.91,136.86,7.4765]
[1719399309074,7.3046,136.9,136.86,7.4765]
[1719399310954,5.97059699,136.94,136.87,7.3057]
[1719399311156,7.3046,136.9,136.86,7.4765]
[1719399312880,7.3052,136.89,136.86,0.17]
[1719399313079,7.3052,136.89,136.85,31.8195]
[1719399313267,7.3047,136.9,136.85,31.8195]
[1719399313468,7.3047,136.9,136.86,7.3065]
[1719399313666,7.3047,136.9,136.85,31.8194]
[1719399313866,7.3047,136.9,136.86,0.17]
[1719399316385,7.3053,136.89,136.86,0.17]
[1719399317385,7.3048,136.9,136.86,0.17]
[1719399318185,7.3041,136.91,136.86,0.17]
[1719399318667,7.3047,136.9,136.86,7.4765]
[1719399318874,7.3047,136.9,136.86,0.17]
[1719399319381,18.2578,136.93,136.85,24.3424]
[1719399319589,8.28972688,136.92,136.85,24.3424]
[1719399319883,7.3067,136.86,136.82,25.5797]
[1719399320187,7.3063,136.87,136.83,7.3081]
[1719399321580,7.307,136.86,136.82,18.6113]
[1719399321782,7.3062,136.87,136.83,7.3082]
[1719399322483,7.3057,136.88,136.84,7.3077]
[1719399323470,7.3057,136.88,136.83,7.3081]
[1719399324190,7.3063,136.87,136.83,7.3081]
[1719399324899,7.3072,136.86,136.82,18.4413]
[1719399325192,7.3064,136.87,136.82,25.7497]
[1719399325394,7.3064,136.87,136.83,7.3082]
[1719399327174,7.3058,136.88,136.84,7.3077]
[1719399327677,34.1683,136.91,136.81,23.0948]
[1719399327678,7.3074,136.85,136.81,23.0948]
[1719399328292,7.3068,136.86,136.82,7.3088]
[1719399329883,7.3064,136.87,136.82,7.3088]
[1719399330192,7.3067,136.86,136.82,7.3085]
[1719399330597,7.3064,136.87,136.82,7.3085]
[1719399330896,7.3068,136.86,136.82,7.3085]
[1719399332504,7.3064,136.87,136.82,7.3085]
[1719399332886,7.307,136.86,136.82,7.3085]
[1719399336802,7.3076,136.85,136.81,34.0591]
[1719399337003,7.3073,136.85,136.81,23.0951]
[1719399337307,7.3069,136.86,136.81,23.0951]
[1719399338999,7.3069,136.86,136.82,7.3086]
[1719399339584,8.28972688,136.87,136.81,15.7858]
[1719399339789,15.59602688,136.87,136.83,7.3083]
[1719399340383,7.3068,136.86,136.82,25.5807]
[1719399341891,8.28972688,136.87,136.82,25.5807]
[1719399341892,15.59612688,136.87,136.82,25.5807]
[1719399342208,15.59612688,136.87,136.83,7.3083]
[1719399344208,7.3067,136.86,136.82,25.5805]
[1719399344893,15.59602688,136.87,136.83,7.3081]
[1719399345088,6.02163085,136.91,136.84,7.3076]
[1719399345312,7.3057,136.88,136.84,7.3076]
[1719399347915,7.3057,136.88,136.83,13.7062]
[1719399348219,8.28972688,136.88,136.83,6.3981]
[1719399348401,7.3069,136.86,136.83,6.3981]
[1719399349805,7.3064,136.87,136.83,6.3981]
[1719399350008,7.3064,136.87,136.83,13.7064]
[1719399353421,15.59552688,136.88,136.83,13.7064]
[1719399355228,8.28972688,136.88,136.83,6.3981]
[1719399355814,7.3068,136.86,136.83,6.3981]
[1719399356517,7.3063,136.87,136.83,6.3981]
[1719399357113,7.3063,136.87,136.83,13.7063]
[1719399358625,15.59552688,136.88,136.83,13.7063]